[Event "Goteborg Open 2024"]
[Site "Goteborgs Schackcentrum, Vegatan 20, Gothenburg, Sweden"]
[Date "2024.08.04"]
[Round "7.21"]
[White "Murugaraja, Yogeshwer"]
[Black "Dahlin, Emil"]
[Result "1-0"]
[TimeControl "15 minutes + 5 seconds per move from move one (Round 1 - 4) / 90 minutes + 30 seconds per move from move one (Round 5 - 8)"]
[WhiteFideId "1779389"]
[BlackFideId "1771035"]
[WhiteElo "1628"]
[BlackElo "1719"]

1. c4 {[%clk 01:30:56]} {[%emt 00:00:04]} f5 {[%clk 01:30:56]} {[%emt
00:00:05]} 2. Nf3 {[%clk 01:31:11]} {[%emt 00:00:14]} Nf6 {[%clk 01:31:20]}
{[%emt 00:00:06]} 3. Nc3 {[%clk 01:31:18]} {[%emt 00:00:23]} g6 {[%clk
01:31:23]} {[%emt 00:00:27]} 4. g3 {[%clk 01:31:29]} {[%emt 00:00:19]} Bg7
{[%clk 01:31:47]} {[%emt 00:00:06]} 5. Bg2 {[%clk 01:31:32]} {[%emt 00:00:27]}
d6 {[%clk 01:32:04]} {[%emt 00:00:13]} 6. d4 {[%clk 01:30:00]} {[%emt
00:02:02]} Nc6 {[%clk 01:32:23]} {[%emt 00:00:12]} 7. e3 {[%clk 01:27:28]}
{[%emt 00:03:02]} O-O {[%clk 01:32:03]} {[%emt 00:00:49]} 8. O-O {[%clk
01:27:41]} {[%emt 00:00:17]} e5 {[%clk 01:32:00]} {[%emt 00:00:32]} 9. dxe5
{[%clk 01:23:35]} {[%emt 00:04:37]} dxe5 {[%clk 01:30:39]} {[%emt 00:01:51]} 10.
b3 {[%clk 01:20:19]} {[%emt 00:03:46]} Be6 {[%clk 01:25:02]} {[%emt 00:06:07]}
11. Ng5 {[%clk 01:15:03]} {[%emt 00:05:46]} Bf7 {[%clk 01:10:46]} {[%emt
00:14:46]} 12. e4 {[%clk 01:10:42]} {[%emt 00:04:51]} fxe4 {[%clk 01:03:30]}
{[%emt 00:07:46]} 13. Ncxe4 {[%clk 01:09:12]} {[%emt 00:02:00]} h6 {[%clk
00:57:46]} {[%emt 00:06:14]} 14. Nxf7 {[%clk 01:07:28]} {[%emt 00:02:14]} Rxf7
{[%clk 00:55:48]} {[%emt 00:02:28]} 15. Bb2 {[%clk 01:03:04]} {[%emt 00:04:54]}
Rd7 {[%clk 00:50:48]} {[%emt 00:05:30]} 16. Nxf6+ {[%clk 00:55:14]} {[%emt
00:08:20]} Bxf6 {[%clk 00:51:00]} {[%emt 00:00:19]} 17. Qg4 {[%clk 00:54:44]}
{[%emt 00:00:56]} Kh7 {[%clk 00:49:21]} {[%emt 00:02:12]} 18. Rad1 {[%clk
00:53:28]} {[%emt 00:01:46]} Rd2 {[%clk 00:39:24]} {[%emt 00:10:28]} 19. Be4
{[%clk 00:39:25]} {[%emt 00:14:31]} Bg5 {[%clk 00:35:11]} {[%emt 00:04:44]} 20.
Rxd2 {[%clk 00:33:20]} {[%emt 00:06:35]} Qxd2 {[%clk 00:34:47]} {[%emt
00:00:54]} 21. Rd1 {[%clk 00:32:30]} {[%emt 00:01:20]} Qxb2 {[%clk 00:31:07]}
{[%emt 00:04:12]} 22. Rd7+ {[%clk 00:32:37]} {[%emt 00:00:21]} Kh8 {[%clk
00:30:36]} {[%emt 00:01:01]} 23. h4 {[%clk 00:31:14]} {[%emt 00:01:52]} Qc1+
{[%clk 00:28:38]} {[%emt 00:02:29]} 24. Kg2 {[%clk 00:30:45]} {[%emt 00:00:59]}
Re8 {[%clk 00:17:41]} {[%emt 00:11:28]} 25. hxg5 Qxg5 {[%clk 00:17:54]} 26.
Qxg5 {[%clk 00:30:21]} {[%emt 00:00:42]} hxg5 {[%clk 00:18:12]} 27. Rxc7 {[%clk
00:30:21]} {[%emt 00:00:41]} Nb4 {[%clk 00:12:16]} 28. Rxb7 {[%clk 00:29:41]}
{[%emt 00:07:35]} Nxa2 {[%clk 00:12:06]} 29. Rxa7 {[%clk 00:29:56]} {[%emt
00:00:57]} Nc1 30. Bxg6 {[%clk 00:29:52]} Rb8 {[%clk 00:12:20]} {[%emt
00:00:15]} 31. Ra5 {[%clk 00:27:46]} {[%emt 00:02:36]} Kg7 {[%clk 00:12:20]}
{[%emt 00:00:32]} 32. Bc2 {[%clk 00:27:57]} {[%emt 00:00:19]} Nxb3 {[%clk
00:11:52]} {[%emt 00:00:57]} 33. Bxb3 {[%clk 00:28:14]} {[%emt 00:00:13]} Rxb3
{[%clk 00:12:15]} {[%emt 00:00:07]} 34. Rxe5 {[%clk 00:28:34]} {[%emt
00:00:11]} Kf6 {[%clk 00:12:19]} {[%emt 00:00:25]} 35. Rb5 {[%clk 00:28:39]}
{[%emt 00:00:25]} Rc3 {[%clk 00:11:34]} {[%emt 00:01:16]} 36. c5 {[%clk
00:28:37]} {[%emt 00:00:31]} g4 {[%clk 00:11:39]} {[%emt 00:00:25]} 37. Rb6+
{[%clk 00:27:57]} {[%emt 00:01:39]} Kf5 {[%clk 00:11:05]} 38. Rc6 {[%clk
00:27:57]} {[%emt 00:01:05]} Rc4 {[%clk 00:11:09]} 39. Rc8 {[%clk 00:27:40]}
{[%emt 00:01:13]} Ke6 {[%clk 00:10:58]} {[%emt 00:00:41]} 40. c6 {[%clk
00:27:35]} {[%emt 00:00:36]} Kd6 {[%clk 00:10:23]} {[%emt 00:01:05]} 41. c7
{[%clk 00:27:44]} {[%emt 00:00:21]} Kd7 {[%clk 00:10:42]} {[%emt 00:00:11]} 42.
Rf8 {[%clk 00:27:42]} {[%emt 00:00:29]} Kxc7 {[%clk 00:09:13]} {[%emt
00:02:01]} 43. Rf4 {[%clk 00:27:56]} {[%emt 00:00:15]} Rc2 {[%clk 00:07:04]}
{[%emt 00:02:40]} 44. Rxg4 {[%clk 00:28:11]} {[%emt 00:00:15]} Kd6 {[%clk
00:07:10]} {[%emt 00:00:23]} 45. Rf4 {[%clk 00:28:09]} {[%emt 00:00:33]} Ke5
{[%emt 00:01:02]} 46. Kh3 {[%clk 00:27:43]} {[%emt 00:00:44]} Rc1 {[%clk
00:05:16]} {[%emt 00:02:03]} 47. Rf8 {[%clk 00:27:44]} {[%emt 00:00:28]} Rd1
{[%emt 00:01:52]} 48. Kg4 {[%emt 00:00:43]} Rg1 {[%clk 00:04:25]} {[%emt
00:00:19]} 49. f4+ {[%clk 00:27:18]} {[%emt 00:00:25]} Ke6 {[%clk 00:04:39]}
{[%emt 00:00:16]} 50. f5+ {[%clk 00:27:07]} {[%emt 00:00:40]} Ke7 {[%clk
00:05:03]} {[%emt 00:00:06]} 51. Rg8 {[%clk 00:27:26]} {[%emt 00:00:10]} Kf7
{[%clk 00:04:22]} {[%emt 00:01:13]} 52. Rg6 {[%clk 00:27:42]} {[%emt 00:00:11]}
Rf1 {[%clk 00:02:37]} {[%emt 00:02:17]} 53. Kg5 {[%clk 00:27:46]} {[%emt
00:00:26]} Rg1 {[%clk 00:02:39]} {[%emt 00:00:29]} 54. g4 {[%clk 00:28:08]}
{[%emt 00:00:07]} Rg2 {[%clk 00:02:13]} {[%emt 00:00:56]} 55. Ra6 {[%clk
00:28:06]} {[%emt 00:00:32]} Rb2 {[%clk 00:02:16]} {[%emt 00:00:27]} 56. Ra7+
{[%clk 00:28:22]} {[%emt 00:00:14]} Kf8 {[%clk 00:01:51]} {[%emt 00:00:55]} 57.
f6 {[%clk 00:28:26]} {[%emt 00:00:25]} Rg2 {[%clk 00:01:51]} {[%emt 00:00:31]}
58. Kf5 {[%clk 00:28:13]} {[%emt 00:00:44]} Rg1 {[%clk 00:01:57]} {[%emt
00:00:24]} 59. g5 {[%emt 00:01:17]} Re1 {[%emt 00:00:38]} 60. Kg6 {[%clk
00:28:02]} {[%emt 00:00:21]} Re8 {[%clk 00:01:37]} {[%emt 00:00:15]} 61. Rh7
{[%clk 00:28:08]} {[%emt 00:00:23]} Kg8 {[%clk 00:01:13]} {[%emt 00:00:54]} 62.
f7+ {[%emt 00:00:35]} 1-0